[Event "German Rapid Championship 2022"]
[Site "Goettingen"]
[Date "2022.09.24"]
[Round "1"]
[White "Bluebaum, Matthias"]
[Black "Reichmann, Hendrik"]
[Result "0-1"]
[ECO "A53"]
[WhiteElo "2647"]
[BlackElo "2307"]
[Annotator "TA"]
[PlyCount "33"]
[EventDate "2022.09.24"]
[EventType "swiss"]
[EventCountry "GER"]
[SourceTitle "playchess.com"]
[Source "ChessBase"]
[SourceQuality "1"]
[TimeControl "900+10"]

{[%evp 9,33,34,70,64,80,73,75,80,75,75,77,62,84,68,77,67,68,55,50,49,50,30,123,52,146,133]} 1. d4 {[%emt 0:00:02]} Nf6 {[%emt 0:00:04]} 2. c4 {[%emt 0:00:02]} d6 {[%emt 0:00:05]} 3. Nf3 {[%emt 0:00:03][%cal Bg1f3,Bf3g5,Bg5f3][%mdl 32]} g6 {[%emt 0:00:09]} 4. Nc3 {[%emt 0:00:02]} Bf5 {[%emt 0:00:15]} 5. d5 {[%emt 0:00:04]} c5 {[%emt 0:01:37]} 6. Ng5 {[%emt 0:00:18] E61: King's Indian: Early deviations for White, including Smyslov System.} h6 {[%emt 0:01:11]} 7. e4 {[%emt 0:00:19] Threatens to win with Nxf7.} Bg4 {[%emt 0:00:46] [#]} 8. Nf3 $1 {[%emt 0:00:07] White is better.} Bg7 {[%emt 0:00:31]} 9. Be2 {[%emt 0:00:17]} O-O {[%emt 0:00:18] [#]} 10. Be3 $146 {[%emt 0:00:17]} ({Predecessor:} 10. h3 Bc8 11. Bf4 Na6 12. Qd2 Kh7 13. O-O Nc7 14. e5 dxe5 15. Nxe5 Nce8 16. Qe3 {1-0 (29) Gonda,L (2553)-Gara,A (2325) Zalakaros 2015}) 10... a6 {[%emt 0:04:08][%cal Ob7b5]} 11. Qd2 {[%emt 0:00:39]} Kh7 {[%emt 0:00:07]} 12. h3 {[%emt 0:02:17]} Bxf3 {[%emt 0:00:20]} 13. Bxf3 {[%emt 0:00:07]} b5 {[%emt 0:00:05]} 14. cxb5 axb5 {[%emt 0:00:02]} 15. Nxb5 {[%emt 0:00:50]} Qb6 {[%emt 0:00:20]} (15... Nbd7 $11) 16. a4 {[%emt 0:01:40]} ({White should try} 16. Nc3 $16) 16... Nbd7 {[%emt 0:01:42] [#]} ({Better is} 16... Nxe4 $1 $14 17. Qc2 (17. Bxe4 Qxb5 18. axb5 Rxa1+ 19. Ke2 Rxh1 $11) 17... Qa5+ 18. Kf1 f5) 17. Qc2 $1 {[%emt 0:01:07][%mdl 32768] Weighted Error Value: White=0.11 (very precise) /Black=0.27 (precise) . Loss on time!?} 0-1

[Event "German Rapid Championship 2022"]
[Site "Goettingen"]
[Date "2022.09.24"]
[Round "1"]
[White "Svane, Rasmus"]
[Black "Kopylov, Michael"]
[Result "1-0"]
[ECO "A06"]
[WhiteElo "2615"]
[BlackElo "2371"]
[Annotator "TA"]
[PlyCount "29"]
[EventDate "2022.09.24"]
[EventType "swiss"]
[EventCountry "GER"]
[SourceTitle "playchess.com"]
[Source "ChessBase"]
[SourceQuality "1"]
[TimeControl "900+10"]

{[%evp 9,29,0,14,8,13,8,25,19,12,6,9,11,26,31,39,50,39,61,243,248,236,240]} 1. Nf3 {[%emt 0:00:02]} d5 {[%emt 0:00:27]} 2. g3 {[%emt 0:00:02]} c6 {[%emt 0:00:02]} 3. Bg2 {[%emt 0:00:02]} Bg4 {[%emt 0:00:03]} 4. O-O {[%emt 0:00:05]} Nd7 {[%emt 0:00:02]} 5. h3 {[%emt 0:00:03]} Bh5 {[%emt 0:00:04]} 6. d4 {[%emt 0:00:03][%cal Oc2c4] A07: Réti Opening: New York and Capablanca Systems.} e6 {[%emt 0:00:10]} 7. c4 {[%emt 0:00:03]} Ngf6 {[%emt 0:00:05]} 8. cxd5 {[%emt 0:00:02] White has an edge.} cxd5 {[%emt 0:00:49]} 9. Qb3 {[%emt 0:00:02]} Qb6 {[%emt 0:00:18]} 10. Nc3 {[%emt 0:00:02]} Be7 {[%emt 0:00:22]} 11. Ne5 {[%emt 0:00:15]} Qxd4 {[%emt 0:01:12] [#]} 12. Qxb7 $146 {[%emt 0:02:07]} ({Predecessor:} 12. Nxd7 Nxd7 13. Qxb7 Rb8 14. Qc6 Qb6 15. Qa4 Rd8 16. g4 Bg6 17. Be3 Qxb2 18. Bd4 {½-½ (43) Svane,R (2613)-Admiraal,M (2475) Tornelo INT 2021}) 12... Rb8 {[%emt 0:00:44]} 13. Qc6 {[%emt 0:00:04][%cal Of1d1] Threatens to win with Rd1!} ({Reject} 13. Nc6 Rxb7 14. Nxd4 O-O $11) 13... Qc5 $2 {[%emt 0:02:05]} (13... Rd8 $1 $14 14. Nxd7 Nxd7) 14. g4 $18 {[%emt 0:01:29][%cal Bg3g4,Bg4g5][%mdl 32]} Bg6 {[%emt 0:00:35] [#]} 15. g5 $1 {[%emt 0:00:43] Weighted Error Value: White=0.01 (flawless) /Black=0.31} 1-0

[Event "German Rapid Championship 2022"]
[Site "Goettingen"]
[Date "2022.09.24"]
[Round "1"]
[White "Lubbe, Nikolas"]
[Black "Hampel, Felix"]
[Result "1-0"]
[ECO "D12"]
[WhiteElo "2479"]
[BlackElo "2326"]
[Annotator "TA"]
[PlyCount "34"]
[EventDate "2022.09.24"]
[EventType "swiss"]
[EventCountry "GER"]
[SourceTitle "playchess.com"]
[Source "ChessBase"]
[SourceQuality "1"]
[TimeControl "900+10"]

{[%evp 10,34,23,2,20,26,20,22,72,66,62,50,48,51,49,42,99,62,74,75,89,36,15,19,31,42,97]} 1. d4 {[%emt 0:00:02]} d5 {[%emt 0:00:02]} 2. Nf3 {[%emt 0:00:03]} Nf6 {[%emt 0:00:01]} 3. c4 {[%emt 0:00:03]} c6 {[%emt 0:00:04]} 4. e3 {[%emt 0:00:05]} Bf5 {[%emt 0:00:04]} 5. Nc3 {[%emt 0:00:22]} a6 {[%emt 0:00:03]} 6. Qb3 {[%emt 0:00:38]} Ra7 {[%emt 0:00:02] D15: Slav Defence: 4 Nc3 a6 and gambit lines after 4 Nc3 dxc4.} 7. Bd2 {[%emt 0:01:04]} e6 {[%emt 0:00:59]} 8. Nh4 {[%emt 0:00:56]} Bg4 {[%emt 0:03:00]} (8... Be4 $11) 9. h3 $16 {[%emt 0:00:30]} Bh5 {[%emt 0:00:02]} 10. g4 {[%emt 0:01:20]} Nfd7 {[%emt 0:00:13]} 11. Ng2 {[%emt 0:01:10]} Bg6 {[%emt 0:00:02]} 12. Nf4 {[%emt 0:01:21]} dxc4 {[%emt 0:02:15]} ({Black should try} 12... Be7 $14) 13. Bxc4 {[%emt 0:00:04] h4 is the strong threat.} b5 {[%emt 0:00:15]} 14. Be2 {[%emt 0:00:30]} c5 {[%emt 0:00:26] [#]} 15. Nxg6 $146 {[%emt 0:02:16] White has more active pieces.} (15. h4 $16) ({Predecessor:} 15. Rc1 Be7 16. Nxg6 hxg6 17. a4 cxd4 18. exd4 b4 19. Ne4 Rc7 20. O-O Nc6 21. Qc4 {0-1 (55) Walter,S (2343)-Hirneise,T (2440) Germany 2014}) 15... hxg6 $14 {[%emt 0:00:28]} 16. Bf3 {[%emt 0:00:27] Prevents Nc6.} Qb6 {[%emt 0:01:20]} 17. a4 {[%emt 0:01:03][%cal Ra4b5]} c4 {[%emt 0:01:19] Weighted Error Value: White=0.07 (flawless) /Black=0.14 (very precise)} (17... cxd4 $14 18. exd4 Nc6) 1-0

[Event "German Rapid Championship 2022"]
[Site "Goettingen"]
[Date "2022.09.24"]
[Round "1"]
[White "Krastev, Alexander"]
[Black "Serrer, Christoph"]
[Result "1-0"]
[ECO "B24"]
[WhiteElo "2431"]
[BlackElo "2251"]
[Annotator "TA"]
[PlyCount "42"]
[EventDate "2022.09.24"]
[EventType "swiss"]
[EventCountry "GER"]
[SourceTitle "playchess.com"]
[Source "ChessBase"]
[SourceQuality "1"]
[TimeControl "900+10"]

{[%evp 16,42,79,79,133,126,138,142,139,117,138,74,79,72,73,64,57,46,52,43,43,50,62,61,60,52,52,52,58]} 1. e4 {[%emt 0:00:02]} c5 {[%emt 0:00:02][%cal Bc7c5,Bc5d4][%mdl 32]} 2. Nc3 {[%emt 0:00:02]} Nc6 {[%emt 0:00:01]} 3. Bb5 {[%emt 0:00:02]} Nd4 {[%emt 0:00:04]} 4. Bc4 {[%emt 0:00:01]} g6 {[%emt 0:01:05]} 5. Nf3 {[%emt 0:00:03]} Bg7 {[%emt 0:00:20]} 6. Nxd4 {[%emt 0:00:02]} cxd4 {[%emt 0:00:35]} 7. Qf3 {[%emt 0:00:02]} e6 {[%emt 0:03:04]} 8. Nb5 {[%emt 0:00:02]} d6 {[%emt 0:00:04]} 9. Qa3 $1 {[%emt 0:00:06][%csl LRa7,LRd6]} Ke7 {[%emt 0:04:18] [#] B23: Closed Sicilian: Lines without g3.} (9... Bf8 $142) 10. c3 $1 $16 {[%emt 0:00:29] White has more active pieces.} (10. d3 a6 11. b3 Rb8 $19) 10... dxc3 {[%emt 0:00:31]} 11. dxc3 {[%emt 0:03:19]} a6 {[%emt 0:00:18] White is clearly better.} 12. Be2 {[%emt 0:00:33] Hoping for Bg5+.} Rb8 {[%emt 0:00:43] [#]} 13. Nd4 {[%emt 0:00:03]} (13. Na7 $142 $1) 13... e5 {[%emt 0:02:10]} 14. Nc2 {[%emt 0:00:08]} ({Worse is} 14. Bg5+ f6 15. Bh4 exd4 $17) 14... Nf6 {[%emt 0:01:17]} 15. Bg5 {[%emt 0:00:03]} h6 {[%emt 0:00:19] White is slightly better.} 16. Bxf6+ {[%emt 0:00:01]} Bxf6 {[%emt 0:00:44]} 17. Rd1 {[%emt 0:00:05]} Be6 {[%emt 0:00:07]} 18. Ne3 {[%emt 0:00:14]} Qc7 {[%emt 0:00:16] [#]} 19. Nd5+ $146 {[%emt 0:00:12]} ({Predecessor:} 19. Bc4 Rhd8 20. Nd5+ Bxd5 21. Bxd5 Kf8 22. O-O Kg7 23. f4 Rf8 24. g3 a5 25. Kh1 {1-0 (38) Brodsky,D (2455)-Nguyen,D (1919) Chess.com INT 2020}) 19... Bxd5 {[%emt 0:00:02]} 20. Rxd5 {[%emt 0:00:01][%cal Of2f4]} Rhd8 {[%emt 0:00:20]} 21. O-O {[%emt 0:00:07]} Kf8 {[%emt 0:00:08] Weighted Error Value: White=0.09 (flawless) /Black=0.10 (very precise)} 1-0

[Event "German Rapid Championship 2022"]
[Site "Goettingen"]
[Date "2022.09.24"]
[Round "1"]
[White "Arndt, Magnus"]
[Black "Feuerstack, Aljoscha"]
[Result "1-0"]
[ECO "D11"]
[WhiteElo "2384"]
[BlackElo "2464"]
[Annotator "TA"]
[PlyCount "22"]
[EventDate "2022.09.24"]
[EventType "swiss"]
[EventCountry "GER"]
[SourceTitle "playchess.com"]
[Source "ChessBase"]
[SourceQuality "1"]
[TimeControl "900+10"]

{[%evp 9,22,8,10,8,8,2,12,12,8,11,18,6,18,12,38]} 1. d4 {[%emt 0:00:03]} d5 {[%emt 0:00:17]} 2. c4 {[%emt 0:00:03]} c6 {[%emt 0:00:01]} 3. Nf3 {[%emt 0:00:04]} Nf6 {[%emt 0:00:01]} 4. g3 {[%emt 0:00:04]} Bf5 {[%emt 0:00:06]} 5. Nc3 {[%emt 0:00:54]} e6 {[%emt 0:00:13] The position is equal.} 6. Qb3 {[%emt 0:00:38] D11: Slav Defence: 3 Nf3 sidelines and 3...Nf6 4 e3 Bg4.} Qb6 {[%emt 0:00:04]} 7. c5 {[%emt 0:00:02]} Qxb3 {[%emt 0:00:59]} 8. axb3 {[%emt 0:00:02]} Na6 {[%emt 0:00:01]} 9. Ra4 {[%emt 0:03:21][%cal Oe2e4]} Bc2 {[%emt 0:01:43] [#] Against e4} 10. Bf4 $146 {[%emt 0:04:36]} ({Predecessor:} 10. Nd2 e5 11. e3 exd4 12. exd4 Nc7 13. Bg2 a6 14. O-O O-O-O 15. Ra3 Ne4 16. Ndxe4 dxe4 {0-1 (47) Akbarinia,S (2379)-Lazavik,D (2436) Chess.com INT 2020}) 10... Bxb3 {[%emt 0:05:07]} 11. Ra3 {[%emt 0:00:06]} Bc4 {[%emt 0:01:14] An uneventful encounter.  Weighted Error Value: White=0.04 (flawless) /Black=0.01 (flawless)} 1-0

[Event "German Rapid Championship 2022"]
[Site "Goettingen"]
[Date "2022.09.24"]
[Round "1"]
[White "Langheinrich, Ferenc"]
[Black "Elier, Ali"]
[Result "1/2-1/2"]
[ECO "C70"]
[WhiteElo "2366"]
[BlackElo "2164"]
[Annotator "TA"]
[PlyCount "27"]
[EventDate "2022.09.24"]
[EventType "swiss"]
[EventCountry "GER"]
[SourceTitle "playchess.com"]
[Source "ChessBase"]
[SourceQuality "1"]
[TimeControl "900+10"]

{[%evp 12,27,23,27,42,8,6,-30,-22,-24,-20,-23,-13,-42,-34,-36,0,-44]} 1. e4 {[%emt 0:00:02]} e5 {[%emt 0:00:01]} 2. Nf3 {[%emt 0:00:21]} Nc6 {[%emt 0:00:01]} 3. Bb5 {[%emt 0:00:09][%cal Bf1b5,Bb5a4,Ba4b3][%mdl 32]} a6 {[%emt 0:00:01]} 4. Ba4 {[%emt 0:00:11]} b5 {[%emt 0:00:04]} 5. Bb3 {[%emt 0:00:02]} Na5 {[%emt 0:00:02]} 6. d4 {[%emt 0:01:01]} exd4 {[%emt 0:00:10]} 7. Qxd4 {[%emt 0:00:29]} Bb7 {[%emt 0:00:36] 7...Ne7 is vanishing. C70: Ruy Lopez: 3...a6 4 Ba4, Norwegian and Delayed Schliemann.} 8. c4 {[%emt 0:02:01] [#]} Qf6 $146 {[%emt 0:02:16]} ({Predecessor:} 8... d6 9. O-O c5 10. Qd3 Nf6 11. Re1 Be7 12. Nc3 O-O 13. Bf4 Qd7 14. Rad1 Nxb3 15. axb3 {1-0 (58) Fernandez Garcia,J (2432)-Molina Rodriguez,B (2172) Santa Cruz de Tenerife 2018}) 9. Nc3 {[%emt 0:02:19]} bxc4 {[%emt 0:01:59] [#] aiming for ...Qxd4. Black has an edge.} 10. Ba4 {[%emt 0:00:09][%csl Ga4][%cal Rd4d7]} Qxd4 {[%emt 0:00:31]} 11. Nxd4 {[%emt 0:00:02]} Nf6 {[%emt 0:01:37]} (11... Bc5 $5 {[%cal Rc5d4]} 12. Be3 Nf6 $11) 12. Bf4 {[%emt 0:02:15]} O-O-O {[%emt 0:02:54] And now ...Bc5 would win.} 13. f3 {[%emt 0:01:22]} Bc5 {[%emt 0:01:19]} 14. O-O-O {[%emt 0:00:17] Weighted Error Value: White=0.20 (precise) /Black=0.06 (flawless)} 1/2-1/2

[Event "German Rapid Championship 2022"]
[Site "Goettingen"]
[Date "2022.09.24"]
[Round "1"]
[White "Langrock, Hannes"]
[Black "Knuedel, Torben"]
[Result "1-0"]
[ECO "A46"]
[WhiteElo "2358"]
[BlackElo "2221"]
[Annotator "TA"]
[PlyCount "46"]
[EventDate "2022.09.24"]
[EventType "swiss"]
[EventCountry "GER"]
[SourceTitle "playchess.com"]
[Source "ChessBase"]
[SourceQuality "1"]
[TimeControl "900+10"]

{[%evp 20,46,10,3,36,33,72,20,51,40,37,33,59,23,30,13,11,5,0,0,0,0,0,0,0,0,18,0,0]} 1. d4 {[%emt 0:00:03]} Nf6 {[%emt 0:00:03]} 2. Nf3 {[%emt 0:00:01]} e6 {[%emt 0:00:05]} 3. g3 {[%emt 0:00:02]} d5 {[%emt 0:00:09]} 4. Bg2 {[%emt 0:00:02]} Be7 {[%emt 0:00:02]} 5. O-O {[%emt 0:00:03]} O-O {[%emt 0:00:03]} 6. c4 {[%emt 0:00:02]} dxc4 {[%emt 0:00:05]} 7. Qc2 {[%emt 0:00:04]} a6 {[%emt 0:00:02]} 8. a4 {[%emt 0:00:03]} Bd7 {[%emt 0:00:04][%cal Bc8d7,Bd7c6,Bc6d5][%mdl 32]} 9. Qxc4 {[%emt 0:00:05]} Bc6 {[%emt 0:00:02]} 10. Bg5 {[%emt 0:00:04]} Nbd7 {[%emt 0:00:31][%cal Bb8d7,Bd7b6,Bb6c4,Bc4d6,Bd6f5][%mdl 32]} 11. Nc3 {[%emt 0:00:14]} Nd5 {[%emt 0:01:55] E05: Open Catalan: 5 Nf3 Be7.} 12. Bxe7 {[%emt 0:00:51]} Qxe7 {[%emt 0:00:27]} 13. Rfe1 {[%emt 0:01:57] [#]} (13. Nxd5 $16 exd5 14. Qc2) 13... N7b6 $146 {[%emt 0:00:12]} ({Predecessor:} 13... Nb4 14. Qb3 Bxf3 15. Bxf3 a5 16. Bxb7 Rab8 17. Bg2 c5 18. Nb5 cxd4 19. Nxd4 Nc5 {½-½ (34) Lombaers,P (2379)-Espineira Gonzalez,D (2386) Penafiel 2020}) 14. Nxd5 {[%emt 0:02:04]} Bxd5 {[%emt 0:01:08]} 15. Qc2 {[%emt 0:00:12]} f5 {[%emt 0:00:47] Prevents e4.} 16. a5 {[%emt 0:01:12]} Nc4 {[%emt 0:01:02]} 17. b3 {[%emt 0:00:07]} Nd6 {[%emt 0:00:09] The position is equal.} 18. Ne5 {[%emt 0:00:24]} Bxg2 {[%emt 0:00:13]} 19. Kxg2 {[%emt 0:00:02]} f4 {[%emt 0:00:24]} 20. e3 {[%emt 0:01:01]} fxe3 {[%emt 0:00:45]} 21. Rxe3 {[%emt 0:01:05][%cal Od4d5]} Nf5 {[%emt 0:01:06]} 22. Re4 {[%emt 0:00:13]} Qd6 {[%emt 0:00:23]} 23. Qc4 {[%emt 0:02:14]} Rae8 {[%emt 0:00:28][%mdl 32768] Weighted Error Value: White=0.12 (very precise) /Black=0.10 (very precise) . Loss on time!?} 1-0

[Event "German Rapid Championship 2022"]
[Site "Goettingen"]
[Date "2022.09.24"]
[Round "1"]
[White "Voigt, Martin"]
[Black "Fridman, Daniel"]
[Result "1/2-1/2"]
[ECO "B18"]
[WhiteElo "2319"]
[BlackElo "2607"]
[Annotator "TA"]
[PlyCount "43"]
[EventDate "2022.09.24"]
[EventType "swiss"]
[EventCountry "GER"]
[SourceTitle "playchess.com"]
[Source "ChessBase"]
[SourceQuality "1"]
[TimeControl "900+10"]

{[%evp 18,43,25,14,10,18,36,-10,28,39,40,45,57,22,31,31,19,0,0,0,-6,0,59,0,139,145,95,0]} 1. e4 {[%emt 0:00:02]} c6 {[%emt 0:00:02]} 2. d4 {[%emt 0:00:02]} d5 {[%emt 0:00:01]} 3. Nc3 {[%emt 0:00:01]} dxe4 {[%emt 0:00:03]} 4. Nxe4 {[%emt 0:00:01]} Bf5 {[%emt 0:00:01]} 5. Ng3 {[%emt 0:00:02]} Bg6 {[%emt 0:00:01]} 6. h4 {[%emt 0:00:02]} h6 {[%emt 0:00:02]} 7. Nf3 {[%emt 0:00:01]} e6 {[%emt 0:00:01]} 8. Ne5 {[%emt 0:00:18]} Bh7 {[%emt 0:00:01]} 9. Bd3 {[%emt 0:00:06]} Bxd3 {[%emt 0:00:02]} 10. Qxd3 {[%emt 0:00:02]} Nd7 {[%emt 0:00:03] B19: Classical Caro-Kann: 4...Bf5 main line.} 11. f4 {[%emt 0:00:09]} Be7 {[%emt 0:00:07]} 12. Nh5 {[%emt 0:00:13]} (12. Bd2 $14 {is more appropriate.}) 12... Bxh4+ {[%emt 0:00:50] The position is equal.} (12... Ngf6 $5 {[%cal Rf6h5]} 13. Nxg7+ Kf8 14. Nxe6+ fxe6 $11) 13. g3 {[%emt 0:00:02]} Bf6 {[%emt 0:00:01]} 14. Bd2 $1 {[%emt 0:00:43]} Qe7 {[%emt 0:06:06]} 15. O-O-O {[%emt 0:00:36]} (15. Qb3 $5 {[%cal Rb3b7]}) 15... g6 {[%emt 0:00:08]} 16. Nxf6+ {[%emt 0:04:55]} Ngxf6 {[%emt 0:00:02]} 17. Qb3 {[%emt 0:00:32]} Nxe5 {[%emt 0:01:40] [#]} 18. dxe5 $146 {[%emt 0:00:35]} ({Predecessor:} 18. Bb4 Nd3+ 19. Rxd3 Qc7 20. Re1 Nd5 21. Bd2 b5 22. Qa3 a5 23. Rf3 Kd7 24. g4 {0-1 (44) Kotronias,V (2605)-Velicka,P (2440) Solsones 2004}) 18... Nd5 {[%emt 0:00:15] Against Bb4} 19. c4 $36 {[%emt 0:00:10][%mdl 2048] White is more active.} Nb6 {[%emt 0:00:02]} (19... Qc5 $11) 20. Be3 {[%emt 0:00:18]} (20. Bb4 $14 c5 21. Ba5) 20... Kf8 {[%emt 0:01:04] [#]} (20... Rd8 $11) 21. g4 $1 $16 {[%emt 0:01:04][%mdl 1024] White has strong compensation. White has more active pieces. The black rooks are badly placed.} Rd8 {[%emt 0:00:33]} ({Black should try} 21... Re8) 22. f5 {[%emt 0:01:11] Weighted Error Value: White=0.16 (very precise) /Black=0.34} ({Better is} 22. Rd6 $16) 1/2-1/2

[Event "German Rapid Championship 2022"]
[Site "Goettingen"]
[Date "2022.09.24"]
[Round "1"]
[White "Tschernatsch, Johannes"]
[Black "Heider, Martin"]
[Result "0-1"]
[ECO "B51"]
[WhiteElo "2294"]
[BlackElo "2393"]
[Annotator "TA"]
[PlyCount "34"]
[EventDate "2022.09.24"]
[EventType "swiss"]
[EventCountry "GER"]
[SourceTitle "playchess.com"]
[Source "ChessBase"]
[SourceQuality "1"]
[TimeControl "900+10"]

{[%evp 9,34,6,34,27,28,28,30,31,38,17,42,39,51,50,62,41,35,33,51,21,28,27,11,9,13,2,29]} 1. e4 {[%emt 0:00:01]} c5 {[%emt 0:00:01]} 2. Nf3 {[%emt 0:00:01]} d6 {[%emt 0:00:01]} 3. Bb5+ {[%emt 0:00:01]} Nd7 {[%emt 0:00:04]} 4. a4 {[%emt 0:00:01]} Ngf6 {[%emt 0:00:03]} 5. Nc3 {[%emt 0:00:01]} g6 {[%emt 0:00:24]} 6. a5 {[%emt 0:00:01] B51: Sicilian: Moscow Variation (3 Bb5+) without 3...Bd7.} Bg7 {[%emt 0:00:17]} 7. O-O {[%emt 0:00:03]} O-O {[%emt 0:00:03]} 8. Re1 {[%emt 0:00:01] White has an edge.} a6 {[%emt 0:00:25]} 9. Bf1 {[%emt 0:00:02]} Nb8 {[%emt 0:00:31]} 10. d4 {[%emt 0:00:51]} cxd4 {[%emt 0:00:13]} 11. Nxd4 {[%emt 0:00:02]} Nc6 {[%emt 0:00:31] [#]} 12. Nxc6 $146 {[%emt 0:01:53]} ({Predecessor:} 12. Nb3 Bg4 13. f3 Be6 14. Nd5 Bxd5 15. exd5 Ne5 16. f4 Ned7 17. c4 Re8 18. Nd4 {1-0 (52) Abdulla,M (2287)-Burnett,A (2160) Edinburgh 2022}) 12... bxc6 {[%emt 0:00:03]} 13. Be3 {[%emt 0:00:45]} Nd7 {[%emt 0:02:11]} 14. Qd2 {[%emt 0:00:20]} Rb8 {[%emt 0:00:14]} 15. Na4 {[%emt 0:00:48]} c5 {[%emt 0:00:09]} 16. Ra3 {[%emt 0:02:58]} Bb7 {[%emt 0:01:33]} ({But not} 16... Bxb2 17. Nxb2 Rxb2 18. Bh6 $16) 17. c3 {[%emt 0:03:32]} Re8 {[%emt 0:04:02][%mdl 32768] Weighted Error Value: White=0.08 (flawless) /Black=0.07 (flawless) . Loss on time!?} 0-1

[Event "German Rapid Championship 2022"]
[Site "Goettingen"]
[Date "2022.09.24"]
[Round "1"]
[White "Schenderowitsch, Michael"]
[Black "Stelmaszyk, Nico"]
[Result "1/2-1/2"]
[ECO "D20"]
[WhiteElo "2292"]
[BlackElo "2355"]
[Annotator "TA"]
[PlyCount "39"]
[EventDate "2022.09.24"]
[EventType "swiss"]
[EventCountry "GER"]
[SourceTitle "playchess.com"]
[Source "ChessBase"]
[SourceQuality "1"]
[TimeControl "900+10"]

{[%evp 13,39,24,33,18,29,31,38,4,19,12,27,0,0,0,-12,-14,-3,-16,-18,-35,-22,-22,-31,-175,-6,-6,0,0]} 1. d4 {[%emt 0:00:01]} d5 {[%emt 0:00:01]} 2. c4 {[%emt 0:00:01]} dxc4 {[%emt 0:00:01]} 3. e3 {[%emt 0:00:03]} c5 {[%emt 0:00:04]} 4. Bxc4 {[%emt 0:00:20]} cxd4 {[%emt 0:00:01]} 5. exd4 {[%emt 0:00:39]} Qc7 {[%emt 0:00:01]} 6. Bb3 {[%emt 0:00:41]} Bg4 {[%emt 0:00:01]} 7. f3 {[%emt 0:00:02]} Bd7 {[%emt 0:00:02]} 8. Nc3 {[%emt 0:00:16] D20: Queen's Gambit Accepted: 3 e3 and 3 e4.} e6 {[%emt 0:00:48]} 9. Nge2 {[%emt 0:00:32]} Nf6 {[%emt 0:01:07]} 10. Be3 {[%emt 0:01:03] [#] White is slightly better.} (10. d5 {with more complications.} Na6 11. O-O Bc5+ 12. Kh1) 10... Bd6 $146 {[%emt 0:00:46]} ({Predecessor:} 10... Be7 11. Rc1 Bc6 12. O-O O-O 13. Kh1 Rd8 14. Qc2 Qa5 15. Nf4 Na6 16. Qe2 Nc7 {½-½ (59) Butnorius,A (2424)-Sermek,D (2568) Plovdiv 2003}) 11. Rc1 {[%emt 0:00:44]} Bc6 {[%emt 0:00:39] Prevents Ne4.} 12. Kf2 {[%emt 0:02:18] [#] d5 is the strong threat.} Qd8 {[%emt 0:02:24]} 13. Nf4 {[%emt 0:03:30]} O-O {[%emt 0:00:22]} 14. Qd2 {[%emt 0:01:09]} Na6 {[%emt 0:02:23]} 15. Rhd1 {[%emt 0:00:12]} Nb4 {[%emt 0:00:36]} 16. a3 {[%emt 0:00:35]} Nbd5 {[%emt 0:00:07]} 17. Nfxd5 {[%emt 0:00:09]} Nxd5 {[%emt 0:00:10]} 18. Nxd5 {[%emt 0:00:04]} ({Better is} 18. Bg5 $15 Qb6 19. Nxd5 exd5 20. Rc3) 18... Bxd5 $2 {[%emt 0:00:14] [#]} (18... Qh4+ $19 19. Ke2 Bb5+ 20. Bc4 Bxc4+ 21. Rxc4 exd5) 19. Bxd5 $11 {[%emt 0:00:02]} exd5 {[%emt 0:00:02]} 20. Bf4 {Weighted Error Value: White=0.26 (precise) /Black=0.23 (precise)} 1/2-1/2

[Event "German Rapid Championship 2022"]
[Site "Goettingen"]
[Date "2022.09.24"]
[Round "1"]
[White "Woelk, Tom-Frederic"]
[Black "Carlstedt, Jonathan"]
[Result "1-0"]
[ECO "B06"]
[WhiteElo "2289"]
[BlackElo "2433"]
[Annotator "TA"]
[PlyCount "40"]
[EventDate "2022.09.24"]
[EventType "swiss"]
[EventCountry "GER"]
[SourceTitle "playchess.com"]
[Source "ChessBase"]
[SourceQuality "1"]
[TimeControl "900+10"]

{[%evp 9,40,56,56,58,65,53,58,51,64,37,43,51,64,71,77,75,101,93,86,84,129,110,133,62,64,60,72,61,100,102,107,79,101]} 1. e4 {[%emt 0:00:03] Hou,Yifan} g6 {[%emt 0:00:16]} 2. d4 {[%emt 0:00:03]} Bg7 {[%emt 0:00:01]} 3. Nc3 {[%emt 0:00:03]} a6 {[%emt 0:00:02]} 4. f4 {[%emt 0:00:19]} d5 {[%emt 0:00:02]} 5. e5 {[%emt 0:00:16]} h5 {[%emt 0:00:03]} 6. Nf3 {[%emt 0:00:29] B06: Modern Defence.} Bg4 {[%emt 0:00:04]} 7. h3 {[%emt 0:00:10]} Bxf3 {[%emt 0:00:02]} 8. Qxf3 {[%emt 0:00:01] White is slightly better.} ({But not} 8. gxf3 Nh6 $15) 8... e6 {[%emt 0:00:02][%cal Oc7c5]} 9. g3 {[%emt 0:00:45]} Ne7 {[%emt 0:00:13]} 10. Be3 {[%emt 0:00:09] [#]} b5 $146 {[%emt 0:00:21]} ({Predecessor:} 10... Nbc6 11. g4 Qd7 12. O-O-O O-O-O 13. Bd3 hxg4 14. hxg4 f6 15. exf6 Bxf6 16. Qf2 Qd6 {1-0 (40) Hou,Y (2673)-Rapport,R (2716) Caleta 2015 CBM 165 [Hou,Yifan]}) 11. a3 {[%emt 0:00:26] White is more active.} Nbc6 {[%emt 0:00:05]} 12. g4 {[%emt 0:00:42]} Qd7 {[%emt 0:00:32]} 13. Bd3 {[%emt 0:00:24]} hxg4 {[%emt 0:01:05]} 14. hxg4 {[%emt 0:00:01]} O-O-O {[%emt 0:00:05]} 15. O-O-O {[%emt 0:00:08]} f5 {[%emt 0:01:18]} 16. gxf5 {[%emt 0:00:24]} (16. g5 $16) 16... Nxf5 $14 {[%emt 0:00:09]} 17. Ne2 {[%emt 0:00:16]} Kb7 {[%emt 0:00:25]} 18. Bf2 {[%emt 0:00:42]} b4 {[%emt 0:01:23]} 19. a4 {[%emt 0:00:34]} Rdf8 {[%emt 0:04:08]} 20. b3 {[%emt 0:01:27]} Bh6 {[%emt 0:00:07] Weighted Error Value: White=0.12 (very precise) /Black=0.14 (very precise)} 1-0